[Event "Late-Titled-Tuesday-Blitz-September-12-2023"]
[Site "Chess.com"]
[Date "2023.09.12"]
[Round "4"]
[White "vugarrasulov"]
[Black "WaybackBoy"]
[Result "1/2-1/2"]
[WhiteElo "2951"]
[BlackElo "2723"]
[TimeControl "180+1"]
[EndTime "14:39:09 PDT"]
[Termination "Game drawn - insufficient material"]

1. d4 {[%clk 0:03:00.9]} 1... Nf6 {[%clk 0:02:59.6]} 2. c4 {[%clk 0:03:01.2]}
2... e6 {[%clk 0:02:58.9]} 3. Nc3 {[%clk 0:03:01.8]} 3... Bb4 {[%clk 0:02:57.3]}
4. g3 {[%clk 0:03:02.4]} 4... O-O {[%clk 0:02:50.9]} 5. Bg2 {[%clk 0:03:02.8]}
5... d5 {[%clk 0:02:50.3]} 6. a3 {[%clk 0:03:02.7]} 6... Bxc3+ {[%clk
0:02:44.1]} 7. bxc3 {[%clk 0:03:03.6]} 7... c5 {[%clk 0:02:39.9]} 8. cxd5 {[%clk
0:03:03.6]} 8... exd5 {[%clk 0:02:39.9]} 9. Nf3 {[%clk 0:03:02.8]} 9... c4
{[%clk 0:02:34.5]} 10. O-O {[%clk 0:02:59.7]} 10... Nc6 {[%clk 0:02:33.6]} 11.
Bg5 {[%clk 0:02:52.3]} 11... h6 {[%clk 0:02:33.3]} 12. Bxf6 {[%clk 0:02:52.7]}
12... Qxf6 {[%clk 0:02:34.1]} 13. Nd2 {[%clk 0:02:48.6]} 13... Be6 {[%clk
0:02:20.9]} 14. e4 {[%clk 0:02:37.7]} 14... dxe4 {[%clk 0:02:06.2]} 15. Nxe4
{[%clk 0:02:38.6]} 15... Qf5 {[%clk 0:01:19.7]} 16. Nd6 {[%clk 0:02:32.1]} 16...
Qf6 {[%clk 0:01:00.9]} 17. Nxb7 {[%clk 0:02:26.7]} 17... Bf5 {[%clk 0:01:01.5]}
18. Qa4 {[%clk 0:02:11.9]} 18... Rac8 {[%clk 0:00:56.3]} 19. Nc5 {[%clk
0:02:01.1]} 19... h5 {[%clk 0:00:47.3]} 20. h4 {[%clk 0:01:54]} 20... Rfd8
{[%clk 0:00:39.5]} 21. Rfe1 {[%clk 0:01:40]} 21... Qg6 {[%clk 0:00:39.5]} 22.
Qxc4 {[%clk 0:01:33.7]} 22... Bc2 {[%clk 0:00:20.7]} 23. Qe2 {[%clk 0:01:28.1]}
23... Na5 {[%clk 0:00:13.7]} 24. Be4 {[%clk 0:01:21.2]} 24... Bxe4 {[%clk
0:00:12.4]} 25. Qxe4 {[%clk 0:01:22.1]} 25... Qf6 {[%clk 0:00:11.1]} 26. Qe2
{[%clk 0:01:11.5]} 26... g6 {[%clk 0:00:07.7]} 27. Rad1 {[%clk 0:01:08.1]} 27...
Qf5 {[%clk 0:00:05]} 28. Qe4 {[%clk 0:00:57.6]} 28... Qf6 {[%clk 0:00:04.9]} 29.
Qe5 {[%clk 0:00:50.9]} 29... Qf3 {[%clk 0:00:05]} 30. Rd3 {[%clk 0:00:34.7]}
30... Qc6 {[%clk 0:00:04.4]} 31. Qe4 {[%clk 0:00:32.5]} 31... Qxe4 {[%clk
0:00:02.6]} 32. Nxe4 {[%clk 0:00:30.4]} 32... Nc4 {[%clk 0:00:02.9]} 33. Ra1
{[%clk 0:00:24]} 33... Ne5 {[%clk 0:00:03.2]} 34. Rdd1 {[%clk 0:00:22.8]} 34...
Nc4 {[%clk 0:00:03.7]} 35. Kg2 {[%clk 0:00:22.8]} 35... Kg7 {[%clk 0:00:03.9]}
36. Nc5 {[%clk 0:00:21.9]} 36... Nxa3 {[%clk 0:00:02.5]} 37. Ne6+ {[%clk
0:00:15.5]} 37... fxe6 {[%clk 0:00:03.4]} 38. Rxa3 {[%clk 0:00:16]} 38... Rc7
{[%clk 0:00:04.1]} 39. Rda1 {[%clk 0:00:15.7]} 39... Kf6 {[%clk 0:00:03.4]} 40.
Rb3 {[%clk 0:00:08.2]} 40... Rdc8 {[%clk 0:00:03.8]} 41. Raa3 {[%clk 0:00:08.8]}
41... Rd8 {[%clk 0:00:04]} 42. Kf3 {[%clk 0:00:09.1]} 42... Rd5 {[%clk
0:00:04.7]} 43. Ke4 {[%clk 0:00:09.2]} 43... Rd6 {[%clk 0:00:03.6]} 44. Kd3
{[%clk 0:00:08.9]} 44... e5 {[%clk 0:00:03.7]} 45. Ra4 {[%clk 0:00:06.2]} 45...
exd4 {[%clk 0:00:03.8]} 46. Rxd4 {[%clk 0:00:07.1]} 46... Re6 {[%clk 0:00:04.4]}
47. Rf4+ {[%clk 0:00:06.4]} 47... Kg7 {[%clk 0:00:04.8]} 48. Rb8 {[%clk
0:00:06.1]} 48... Rd7+ {[%clk 0:00:04.8]} 49. Kc2 {[%clk 0:00:06.5]} 49... Re2+
{[%clk 0:00:04.9]} 50. Kb3 {[%clk 0:00:07.1]} 50... Re1 {[%clk 0:00:04.4]} 51.
Ra8 {[%clk 0:00:05.2]} 51... Rb1+ {[%clk 0:00:04.5]} 52. Kc2 {[%clk 0:00:05.8]}
52... Re1 {[%clk 0:00:04.9]} 53. Kb2 {[%clk 0:00:05]} 53... Re2+ {[%clk
0:00:05]} 54. Kb3 {[%clk 0:00:05.4]} 54... Re1 {[%clk 0:00:05.9]} 55. Ra4 {[%clk
0:00:05.7]} 55... Rb1+ {[%clk 0:00:05.5]} 56. Kc2 {[%clk 0:00:06]} 56... Rbb7
{[%clk 0:00:06.4]} 57. Ra6 {[%clk 0:00:06.5]} 57... Rbc7 {[%clk 0:00:06.9]} 58.
Rb8 {[%clk 0:00:05.4]} 58... Re7 {[%clk 0:00:06.9]} 59. Rb2 {[%clk 0:00:03]}
59... Re2+ {[%clk 0:00:06.5]} 60. Kb1 {[%clk 0:00:03.7]} 60... Re1+ {[%clk
0:00:06.5]} 61. Ka2 {[%clk 0:00:04.5]} 61... Rc1 {[%clk 0:00:06.5]} 62. Ra3
{[%clk 0:00:03.2]} 62... R1xc3 {[%clk 0:00:05.9]} 63. Rxc3 {[%clk 0:00:04.1]}
63... Rxc3 {[%clk 0:00:06.7]} 64. Re2 {[%clk 0:00:04.6]} 64... Rc7 {[%clk
0:00:05.7]} 65. Kb2 {[%clk 0:00:05.1]} 65... Kf6 {[%clk 0:00:06.1]} 66. Re3
{[%clk 0:00:04.1]} 66... Kf5 {[%clk 0:00:06.4]} 67. Ra3 {[%clk 0:00:03.1]} 67...
Ke4 {[%clk 0:00:05]} 68. Ra6 {[%clk 0:00:03.1]} 68... Rg7 {[%clk 0:00:04.3]} 69.
Rf6 {[%clk 0:00:03.8]} 69... Kd3 {[%clk 0:00:03.6]} 70. Kb3 {[%clk 0:00:03.6]}
70... Ke2 {[%clk 0:00:04.2]} 71. Kb4 {[%clk 0:00:04]} 71... g5 {[%clk
0:00:03.1]} 72. Rf5 {[%clk 0:00:02.6]} 72... gxh4 {[%clk 0:00:02.8]} 73. gxh4
{[%clk 0:00:03.5]} 73... Rg4+ {[%clk 0:00:03.3]} 74. Kc3 {[%clk 0:00:04.1]}
74... Rxh4 {[%clk 0:00:03.6]} 75. Rf7 {[%clk 0:00:04.2]} 75... a5 {[%clk
0:00:03.9]} 76. f4 {[%clk 0:00:03.6]} 76... a4 {[%clk 0:00:01.8]} 77. f5 {[%clk
0:00:03.6]} 77... a3 {[%clk 0:00:02]} 78. Kb3 {[%clk 0:00:04]} 78... Rh3+ {[%clk
0:00:02]} 79. Ka2 {[%clk 0:00:04.8]} 79... Rf3 {[%clk 0:00:02]} 80. f6 {[%clk
0:00:05.5]} 80... h4 {[%clk 0:00:02.4]} 81. Rh7 {[%clk 0:00:04.3]} 81... h3
{[%clk 0:00:02.9]} 82. f7 {[%clk 0:00:04.8]} 82... Kf2 {[%clk 0:00:03.4]} 83.
Rxh3 {[%clk 0:00:03.9]} 83... Rxf7 {[%clk 0:00:03.7]} 84. Rxa3 {[%clk
0:00:04.6]} 84... Rf3 {[%clk 0:00:04.3]} 85. Rxf3+ {[%clk 0:00:04.3]} 85... Kxf3
{[%clk 0:00:04.9]} 1/2-1/2

[Event "Late-Titled-Tuesday-Blitz-September-12-2023"]
[Site "Chess.com"]
[Date "2023.09.12"]
[Round "4"]
[White "lgsalazar94"]
[Black "azikom"]
[Result "0-1"]
[WhiteElo "2465"]
[BlackElo "2657"]
[TimeControl "180+1"]
[EndTime "14:39:18 PDT"]
[Termination "azikom won by checkmate"]

1. d4 {[%clk 0:03:00.9]} 1... d5 {[%clk 0:02:59.4]} 2. c4 {[%clk 0:03:00.7]}
2... c6 {[%clk 0:02:59.2]} 3. Nf3 {[%clk 0:02:59.7]} 3... Nf6 {[%clk 0:02:59.4]}
4. Nc3 {[%clk 0:02:59.1]} 4... dxc4 {[%clk 0:02:59.1]} 5. a4 {[%clk 0:02:55.9]}
5... Bf5 {[%clk 0:02:57.5]} 6. Ne5 {[%clk 0:02:29.2]} 6... e6 {[%clk 0:02:52.4]}
7. f3 {[%clk 0:02:26.3]} 7... Nbd7 {[%clk 0:02:48.2]} 8. e4 {[%clk 0:02:21.6]}
8... Bg6 {[%clk 0:02:47.4]} 9. Nxc4 {[%clk 0:02:20.6]} 9... a5 {[%clk
0:02:44.5]} 10. Be2 {[%clk 0:02:18.8]} 10... Bb4 {[%clk 0:02:41.6]} 11. O-O
{[%clk 0:02:18.2]} 11... O-O {[%clk 0:02:40.7]} 12. Be3 {[%clk 0:02:17.3]} 12...
h6 {[%clk 0:02:38.6]} 13. Qb3 {[%clk 0:02:15.2]} 13... Qc7 {[%clk 0:02:31.2]}
14. Rac1 {[%clk 0:02:13.1]} 14... Rfd8 {[%clk 0:02:23.3]} 15. Rfd1 {[%clk
0:02:00.3]} 15... e5 {[%clk 0:02:10.4]} 16. dxe5 {[%clk 0:01:36.4]} 16... Nxe5
{[%clk 0:02:09.7]} 17. Rxd8+ {[%clk 0:01:35.5]} 17... Rxd8 {[%clk 0:01:57.1]}
18. Bb6 {[%clk 0:01:35.5]} 18... Qb8 {[%clk 0:01:54.6]} 19. Nxe5 {[%clk
0:01:20.1]} 19... Qxe5 {[%clk 0:01:51.9]} 20. Bxd8 {[%clk 0:01:20.3]} 20... Qd4+
{[%clk 0:01:52.3]} 21. Kh1 {[%clk 0:01:17]} 21... Qxd8 {[%clk 0:01:52.8]} 22. e5
{[%clk 0:01:10.3]} 22... Nh5 {[%clk 0:01:46.9]} 23. e6 {[%clk 0:01:06.8]} 23...
fxe6 {[%clk 0:01:41.2]} 24. Qxe6+ {[%clk 0:01:02.4]} 24... Bf7 {[%clk
0:01:40.6]} 25. Qe3 {[%clk 0:00:50.8]} 25... Qh4 {[%clk 0:01:35.9]} 26. Ne4
{[%clk 0:00:42.1]} 26... Nf4 {[%clk 0:01:00.8]} 27. Bc4 {[%clk 0:00:16.1]} 27...
Nd5 {[%clk 0:00:53.5]} 28. Bxd5 {[%clk 0:00:15.2]} 28... cxd5 {[%clk 0:00:53.2]}
29. Ng3 {[%clk 0:00:13.1]} 29... Qf6 {[%clk 0:00:51.1]} 30. b3 {[%clk
0:00:11.4]} 30... d4 {[%clk 0:00:49.9]} 31. Qd3 {[%clk 0:00:10.1]} 31... Bg6
{[%clk 0:00:35.9]} 32. Ne4 {[%clk 0:00:09.4]} 32... Qe5 {[%clk 0:00:35.6]} 33.
Rd1 {[%clk 0:00:08.5]} 33... Bc3 {[%clk 0:00:34.4]} 34. Qc4+ {[%clk 0:00:08]}
34... Bf7 {[%clk 0:00:32.9]} 35. Qc8+ {[%clk 0:00:07.8]} 35... Kh7 {[%clk
0:00:32.8]} 36. Qg4 {[%clk 0:00:06]} 36... Bxb3 {[%clk 0:00:30.6]} 37. Rb1
{[%clk 0:00:04.8]} 37... Be6 {[%clk 0:00:20.6]} 38. Qh4 {[%clk 0:00:05.3]} 38...
Bb4 {[%clk 0:00:17.1]} 39. Rd1 {[%clk 0:00:04.5]} 39... Bb3 {[%clk 0:00:12.4]}
40. Rb1 {[%clk 0:00:03.8]} 40... Bc2 {[%clk 0:00:11.2]} 41. Rc1 {[%clk
0:00:03.8]} 41... d3 {[%clk 0:00:11.2]} 42. Qf2 {[%clk 0:00:03.7]} 42... Qb2
{[%clk 0:00:07.1]} 43. Rg1 {[%clk 0:00:03.4]} 43... Ba3 {[%clk 0:00:04.3]} 44.
Qh4 {[%clk 0:00:03.7]} 44... Qe5 {[%clk 0:00:03.2]} 45. Qf2 {[%clk 0:00:03.3]}
45... Bxa4 {[%clk 0:00:02.4]} 46. Qd2 {[%clk 0:00:03.2]} 46... Bc2 {[%clk
0:00:02]} 47. Rf1 {[%clk 0:00:02.9]} 47... Bb4 {[%clk 0:00:01.9]} 48. Rg1 {[%clk
0:00:03.4]} 48... b5 {[%clk 0:00:02.1]} 49. Qf2 {[%clk 0:00:01.5]} 49... a4
{[%clk 0:00:01.8]} 50. Qh4 {[%clk 0:00:01.9]} 50... Be7 {[%clk 0:00:01.6]} 51.
Qg3 {[%clk 0:00:01.8]} 51... Qxg3 {[%clk 0:00:01.5]} 52. hxg3 {[%clk 0:00:02.4]}
52... a3 {[%clk 0:00:02]} 53. Nd2 {[%clk 0:00:03.2]} 53... b4 {[%clk 0:00:02.3]}
54. Ra1 {[%clk 0:00:03.9]} 54... b3 {[%clk 0:00:01.9]} 55. Kg1 {[%clk 0:00:04]}
55... b2 {[%clk 0:00:02.1]} 56. Rf1 {[%clk 0:00:04.8]} 56... a2 {[%clk
0:00:02.5]} 57. Nb3 {[%clk 0:00:04.1]} 57... a1=Q {[%clk 0:00:03]} 58. Nxa1
{[%clk 0:00:05]} 58... bxa1=Q {[%clk 0:00:03.3]} 59. Rxa1 {[%clk 0:00:05.9]}
59... d2 {[%clk 0:00:03.9]} 60. Kf2 {[%clk 0:00:05.8]} 60... d1=Q {[%clk
0:00:04.2]} 61. Rxd1 {[%clk 0:00:06.5]} 61... Bxd1 {[%clk 0:00:04.5]} 62. g4
{[%clk 0:00:07.4]} 62... Ba4 {[%clk 0:00:05.1]} 63. Kg3 {[%clk 0:00:07.7]} 63...
Bb5 {[%clk 0:00:05.7]} 64. Kf4 {[%clk 0:00:07.6]} 64... Bd6+ {[%clk 0:00:06.6]}
65. Kf5 {[%clk 0:00:07.6]} 65... Bb8 {[%clk 0:00:07.3]} 66. Ke4 {[%clk
0:00:07.4]} 66... Bd7 {[%clk 0:00:07.5]} 67. f4 {[%clk 0:00:07.5]} 67... Bc8
{[%clk 0:00:08.4]} 68. g3 {[%clk 0:00:08.2]} 68... Bb7+ {[%clk 0:00:08.8]} 69.
Kf5 {[%clk 0:00:08.5]} 69... Bc8+ {[%clk 0:00:08.9]} 70. Ke4 {[%clk 0:00:09]}
70... Bxg4 {[%clk 0:00:08.9]} 71. Ke3 {[%clk 0:00:09.4]} 71... h5 {[%clk
0:00:09.3]} 72. Ke4 {[%clk 0:00:10.3]} 72... Kg6 {[%clk 0:00:09.8]} 73. Ke3
{[%clk 0:00:10.8]} 73... Kf6 {[%clk 0:00:10.2]} 74. Ke4 {[%clk 0:00:10.7]} 74...
g6 {[%clk 0:00:10.4]} 75. Ke3 {[%clk 0:00:11.6]} 75... Kf5 {[%clk 0:00:10.9]}
76. Kf2 {[%clk 0:00:11.8]} 76... Ba7+ {[%clk 0:00:11.5]} 77. Kg2 {[%clk
0:00:12.7]} 77... Ke4 {[%clk 0:00:11.4]} 78. Kh2 {[%clk 0:00:13]} 78... Kf3
{[%clk 0:00:10.2]} 79. f5 {[%clk 0:00:11.2]} 79... Bxf5 {[%clk 0:00:10.2]} 80.
Kh1 {[%clk 0:00:11.4]} 80... Ke4 {[%clk 0:00:09.3]} 81. Kh2 {[%clk 0:00:12.3]}
81... Bb8 {[%clk 0:00:08.8]} 82. Kg2 {[%clk 0:00:12.3]} 82... Bg4 {[%clk
0:00:08.5]} 83. Kh2 {[%clk 0:00:12.7]} 83... g5 {[%clk 0:00:09]} 84. Kg2 {[%clk
0:00:13.1]} 84... Ke3 {[%clk 0:00:09]} 85. Kh2 {[%clk 0:00:12.7]} 85... Kf3
{[%clk 0:00:09.4]} 86. Kg1 {[%clk 0:00:12.6]} 86... Kxg3 {[%clk 0:00:09.6]} 87.
Kh1 {[%clk 0:00:13.5]} 87... h4 {[%clk 0:00:09.4]} 88. Kg1 {[%clk 0:00:14.4]}
88... h3 {[%clk 0:00:10.1]} 89. Kh1 {[%clk 0:00:15.3]} 89... Bf3+ {[%clk
0:00:10]} 90. Kg1 {[%clk 0:00:16.2]} 90... h2+ {[%clk 0:00:10.6]} 91. Kf1 {[%clk
0:00:16.7]} 91... h1=Q# {[%clk 0:00:11.1]} 0-1

[Event "Late-Titled-Tuesday-Blitz-September-12-2023"]
[Site "Chess.com"]
[Date "2023.09.12"]
[Round "4"]
[White "rasmussvane"]
[Black "cassoulet"]
[Result "1-0"]
[WhiteElo "2993"]
[BlackElo "2776"]
[TimeControl "180+1"]
[EndTime "14:39:27 PDT"]
[Termination "rasmussvane won by resignation"]

1. Nf3 {[%clk 0:03:00.9]} 1... Nf6 {[%clk 0:02:55.7]} 2. g3 {[%clk 0:02:59.4]}
2... g6 {[%clk 0:02:56]} 3. Bg2 {[%clk 0:02:59.8]} 3... Bg7 {[%clk 0:02:56.9]}
4. O-O {[%clk 0:03:00.2]} 4... O-O {[%clk 0:02:57.7]} 5. d4 {[%clk 0:03:00.7]}
5... d6 {[%clk 0:02:58.3]} 6. Re1 {[%clk 0:03:00.4]} 6... Nbd7 {[%clk
0:02:58.9]} 7. e4 {[%clk 0:03:00.6]} 7... c5 {[%clk 0:02:59.5]} 8. e5 {[%clk
0:02:52]} 8... Ne8 {[%clk 0:02:59.4]} 9. dxc5 {[%clk 0:02:29.4]} 9... Nxc5
{[%clk 0:02:56.8]} 10. Nc3 {[%clk 0:02:24]} 10... Bg4 {[%clk 0:02:53.7]} 11.
exd6 {[%clk 0:02:21.5]} 11... Nxd6 {[%clk 0:02:50.9]} 12. Bg5 {[%clk 0:02:20.1]}
12... Ne6 {[%clk 0:02:50.6]} 13. Bc1 {[%clk 0:01:51.9]} 13... Nd4 {[%clk
0:02:40.3]} 14. Be3 {[%clk 0:01:18.9]} 14... N6f5 {[%clk 0:02:38.2]} 15. Bxd4
{[%clk 0:01:19.2]} 15... Nxd4 {[%clk 0:02:37.8]} 16. Re4 {[%clk 0:01:19.3]}
16... Bxf3 {[%clk 0:02:16.3]} 17. Bxf3 {[%clk 0:01:20.2]} 17... Nxf3+ {[%clk
0:02:08.9]} 18. Qxf3 {[%clk 0:01:20.1]} 18... e6 {[%clk 0:02:09.5]} 19. Rb4
{[%clk 0:01:12]} 19... b6 {[%clk 0:02:09.3]} 20. Rc4 {[%clk 0:00:46.5]} 20...
Qe7 {[%clk 0:01:56.8]} 21. Rd1 {[%clk 0:00:42.7]} 21... Rad8 {[%clk 0:01:55.5]}
22. Kg2 {[%clk 0:00:42.5]} 22... Rxd1 {[%clk 0:01:53]} 23. Nxd1 {[%clk
0:00:43.4]} 23... Rd8 {[%clk 0:01:51.2]} 24. c3 {[%clk 0:00:36.6]} 24... h5
{[%clk 0:01:48.5]} 25. Ne3 {[%clk 0:00:32.5]} 25... Rd2 {[%clk 0:01:47.3]} 26.
Rc8+ {[%clk 0:00:31.9]} 26... Kh7 {[%clk 0:01:46.6]} 27. Rb8 {[%clk 0:00:32.4]}
27... Rd7 {[%clk 0:01:26.1]} 28. a4 {[%clk 0:00:29.5]} 28... Bh6 {[%clk
0:01:21.8]} 29. Nc4 {[%clk 0:00:27]} 29... e5 {[%clk 0:01:13.7]} 30. Qe4 {[%clk
0:00:25]} 30... Bg7 {[%clk 0:01:13.8]} 31. Ne3 {[%clk 0:00:25.2]} 31... Qe6
{[%clk 0:01:08.7]} 32. Qc4 {[%clk 0:00:20.5]} 32... Qd6 {[%clk 0:01:02.5]} 33.
Rc8 {[%clk 0:00:16.3]} 33... Bh6 {[%clk 0:00:58.3]} 34. Qe4 {[%clk 0:00:12.4]}
34... f5 {[%clk 0:00:50.9]} 35. Qa8 {[%clk 0:00:10.6]} 35... Bxe3 {[%clk
0:00:39.8]} 36. fxe3 {[%clk 0:00:06.7]} 36... a5 {[%clk 0:00:16.1]} 37. Kh3
{[%clk 0:00:06]} 37... Kh6 {[%clk 0:00:07.2]} 38. Rh8+ {[%clk 0:00:05.5]} 38...
Kg5 {[%clk 0:00:07.4]} 39. Qf3 {[%clk 0:00:03]} 39... Qd3 {[%clk 0:00:05.7]} 40.
Rg8 {[%clk 0:00:02.9]} 40... Rd6 {[%clk 0:00:04.7]} 41. Rf8 {[%clk 0:00:02.9]}
41... Qc4 {[%clk 0:00:04.8]} 42. Re8 {[%clk 0:00:03]} 42... Qg4+ {[%clk
0:00:04.9]} 43. Qxg4+ {[%clk 0:00:02.5]} 43... hxg4+ {[%clk 0:00:05.8]} 44. Kg2
{[%clk 0:00:03.4]} 44... Rd2+ {[%clk 0:00:06.5]} 45. Kg1 {[%clk 0:00:04.1]}
45... Rxb2 {[%clk 0:00:07.4]} 46. Rxe5 {[%clk 0:00:04.4]} 46... Rb3 {[%clk
0:00:07.7]} 47. Re6 {[%clk 0:00:04.6]} 47... Rxc3 {[%clk 0:00:08]} 48. Rxb6
{[%clk 0:00:05.1]} 48... Rxe3 {[%clk 0:00:08.6]} 49. Rb5 {[%clk 0:00:05.7]}
49... Ra3 {[%clk 0:00:08.4]} 50. Rxa5 {[%clk 0:00:06.3]} 50... Kf6 {[%clk
0:00:08.6]} 51. Ra6+ {[%clk 0:00:06.6]} 51... Kg5 {[%clk 0:00:08.6]} 52. Ra5
{[%clk 0:00:06.2]} 52... Ra2 {[%clk 0:00:09]} 53. Ra6 {[%clk 0:00:05.6]} 53...
Kh5 {[%clk 0:00:09.4]} 54. Ra8 {[%clk 0:00:05.3]} 54... Kg5 {[%clk 0:00:09.7]}
55. Ra5 {[%clk 0:00:04.9]} 55... Kf6 {[%clk 0:00:10]} 56. Ra6+ {[%clk 0:00:05]}
56... Ke5 {[%clk 0:00:10.6]} 57. Rxg6 {[%clk 0:00:04.5]} 57... Ke4 {[%clk
0:00:10.8]} 58. Rb6 {[%clk 0:00:03.6]} 58... Rxa4 {[%clk 0:00:10.4]} 59. Rb2
{[%clk 0:00:03.4]} 59... Ra3 {[%clk 0:00:09.8]} 60. Kg2 {[%clk 0:00:03.7]} 60...
Rd3 {[%clk 0:00:09.8]} 61. Re2+ {[%clk 0:00:03.1]} 61... Re3 {[%clk 0:00:10]}
62. Rf2 {[%clk 0:00:03.3]} 62... Rd3 {[%clk 0:00:10]} 63. Re2+ {[%clk
0:00:03.5]} 63... Kd4 {[%clk 0:00:10.3]} 64. Ra2 {[%clk 0:00:03.6]} 64... Ke3
{[%clk 0:00:10.6]} 65. Ra5 {[%clk 0:00:02.7]} 65... Rd2+ {[%clk 0:00:10.5]} 66.
Kg1 {[%clk 0:00:03.2]} 66... Rd4 {[%clk 0:00:09.7]} 67. Rxf5 {[%clk 0:00:03]}
67... Rc4 {[%clk 0:00:09.5]} 68. Rf1 {[%clk 0:00:02.7]} 68... Ke2 {[%clk
0:00:09.4]} 69. Rf2+ {[%clk 0:00:03.1]} 69... Ke3 {[%clk 0:00:09.9]} 70. Kg2
{[%clk 0:00:04]} 70... Rc1 {[%clk 0:00:09.6]} 71. Rf4 {[%clk 0:00:03.8]} 71...
Rc2+ {[%clk 0:00:09.6]} 72. Kg1 {[%clk 0:00:04.3]} 72... Rc1+ {[%clk 0:00:10.3]}
73. Rf1 {[%clk 0:00:04.4]} 73... Rc2 {[%clk 0:00:09.6]} 74. Kh1 {[%clk
0:00:03.7]} 74... Rb2 {[%clk 0:00:09.4]} 75. Kg1 {[%clk 0:00:03.6]} 75... Rc2
{[%clk 0:00:09.3]} 76. Re1+ {[%clk 0:00:04.1]} 76... Kf3 {[%clk 0:00:09.4]} 77.
Ra1 {[%clk 0:00:05]} 77... Rc3 {[%clk 0:00:09.1]} 78. Rf1+ {[%clk 0:00:04.3]}
78... Ke3 {[%clk 0:00:09.5]} 79. Rf2 {[%clk 0:00:04.4]} 79... Rc1+ {[%clk
0:00:09.7]} 80. Kg2 {[%clk 0:00:04.9]} 80... Rc4 {[%clk 0:00:09.8]} 81. Ra2
{[%clk 0:00:05.2]} 81... Rc3 {[%clk 0:00:09.7]} 82. h4 {[%clk 0:00:05.3]} 82...
gxh3+ {[%clk 0:00:08]} 83. Kxh3 {[%clk 0:00:06.2]} 83... Rc8 {[%clk 0:00:07.9]}
84. Ra4 {[%clk 0:00:04.7]} 84... Rh8+ {[%clk 0:00:06.9]} 85. Kg2 {[%clk
0:00:05.2]} 85... Rh7 {[%clk 0:00:05.9]} 86. g4 {[%clk 0:00:05.7]} 86... Rf7
{[%clk 0:00:03.2]} 87. Kg3 {[%clk 0:00:05.8]} 87... Rh7 {[%clk 0:00:02.4]} 88.
g5 {[%clk 0:00:06.2]} 88... Rh1 {[%clk 0:00:02.1]} 89. Kg4 {[%clk 0:00:06.7]}
89... Rg1+ {[%clk 0:00:02.6]} 90. Kf5 {[%clk 0:00:07.2]} 90... Rf1+ {[%clk
0:00:02.8]} 91. Ke5 {[%clk 0:00:07.8]} 91... Rg1 {[%clk 0:00:01.8]} 92. Kf6
{[%clk 0:00:08]} 92... Rf1+ {[%clk 0:00:02.3]} 93. Kg7 {[%clk 0:00:08]} 93...
Rb1 {[%clk 0:00:03.2]} 94. g6 {[%clk 0:00:08.3]} 94... Rb7+ {[%clk 0:00:03.8]}
95. Kh6 {[%clk 0:00:08.5]} 95... Rb6 {[%clk 0:00:03.9]} 96. Kh7 {[%clk
0:00:08.8]} 96... Rb7+ {[%clk 0:00:04.1]} 97. g7 {[%clk 0:00:09.4]} 97... Kf3
{[%clk 0:00:03.8]} 98. Kh8 {[%clk 0:00:09.6]} 98... Rxg7 {[%clk 0:00:03.1]} 99.
Kxg7 {[%clk 0:00:09.7]} 1-0